bitfinex/quotes_ETHUSD_20250520
["timestamp","ask_amount","ask_price","bid_price","bid_amount"]
[1747762667149,10.963,2485.2,2483.2,0.20985425]
[1747762667356,4.02527875,2484.3,2484.2,12.62066667]
[1747762667705,4.02527875,2484.3,2484.2,12.57066667]
[1747762670164,4.43373749,2484.3,2484.2,12.57066667]
[1747762670477,4.43373749,2484.3,2484.2,0.61666667]
[1747762674560,4.02527875,2484.3,2484.2,0.61666667]
[1747762675768,8.22449626,2484.3,2484.2,0.61666667]
[1747762678444,4.02527875,2484.3,2484.2,2.64253334]
[1747762679754,4.02029851,2484.3,2484.2,2.64253334]
[1747762680151,4.02029851,2484.3,2484.2,1.37506667]
[1747762680382,4.02029851,2484.3,2484.2,0.61666667]
[1747762680545,4.02029851,2484.3,2484.2,21.62666667]
[1747762680969,4.02029851,2484.3,2484.2,0.61666667]
[1747762681198,8.21951602,2484.3,2484.2,0.61666667]
[1747762682250,4.02029851,2484.3,2484.2,0.61666667]
[1747762682686,8.21951602,2484.3,2484.2,12.57666667]
[1747762684195,4.02029851,2484.3,2484.2,12.57666667]
[1747762684522,4.02029851,2484.3,2484.2,1.88433334]
[1747762684813,4.02029851,2484.3,2484.2,21.62866667]
[1747762686371,4.02029851,2484.3,2484.2,12.57666667]
[1747762686766,4.01247242,2484.3,2484.2,12.57666667]
[1747762689293,4.01247242,2484.3,2484.2,0.61666667]
[1747762689463,4.56247242,2484.3,2484.2,0.61666667]
[1747762689670,12.01247242,2484.3,2484.2,0.61666667]
[1747762689870,4.01247242,2484.3,2484.2,0.61666667]
[1747762691671,4.01247242,2484.3,2484.2,12.57666667]
[1747762693108,4.01247242,2484.3,2484.2,0.61666667]
[1747762693888,4.00764127,2484.3,2484.2,12.57666667]
[1747762694906,4.00764127,2484.3,2484.2,0.61666667]
[1747762695069,12.55764127,2484.3,2484.2,0.61666667]
[1747762695811,22.73764127,2484.3,2484.2,0.61666667]
[1747762697289,6.44006185,2483.2,2483.0,27.2003]
[1747762697475,6.44006185,2483.2,2483.1,12.052]
[1747762697476,4.02706185,2483.2,2483.1,12.052]
[1747762698380,4.02706185,2483.2,2483.1,0.1]
[1747762699201,4.02706185,2483.2,2483.1,12.052]
[1747762699510,4.02706185,2483.2,2483.1,0.1]
[1747762700225,4.02706185,2483.2,2483.1,12.052]
[1747762700423,4.02706185,2483.2,2483.1,0.1]
[1747762700784,4.02113699,2483.2,2483.1,0.1]
[1747762701304,12.02113699,2483.2,2483.1,0.1]
[1747762702375,4.02113699,2483.2,2483.1,0.1]
[1747762703316,4.02113699,2483.2,2483.1,0.9029]
[1747762703611,4.02113699,2483.2,2483.1,11.09389]
[1747762703798,3.18783699,2483.2,2483.1,11.09389]
[1747762703980,4.02576489,2484.0,2483.3,0.8029]
[1747762704176,4.02673753,2483.4,2483.3,0.8029]
[1747762704402,4.02673753,2483.4,2483.3,30.1318]
[1747762704604,4.02673753,2483.4,2483.3,34.03416288]
[1747762707601,4.02673753,2483.4,2483.3,22.07916288]
[1747762707798,4.02673753,2483.4,2483.3,43.08716288]
[1747762708036,4.01876234,2483.4,2483.3,43.08716288]
[1747762709028,4.02664652,2483.5,2483.4,0.7595]
[1747762709340,4.02651741,2483.6,2483.5,0.7565]
[1747762709489,4.02651741,2483.6,2483.5,12.139258]
[1747762710127,4.02651741,2483.6,2483.5,9.13862258]
[1747762710437,4.02651741,2483.6,2483.5,12.52138058]
[1747762710635,4.02651741,2483.6,2483.5,15.52176146]
[1747762710786,4.02651741,2483.6,2483.5,34.04798546]
[1747762711902,4.02651741,2483.6,2483.5,38.77174646]
[1747762712102,4.02651741,2483.6,2483.5,13.04098546]
[1747762712297,4.02651741,2483.6,2483.5,34.04798546]
[1747762712619,4.02651741,2483.6,2483.5,34.59798546]
[1747762712787,4.02504828,2484.5,2483.7,0.7972]
[1747762713120,4.02584634,2484.0,2483.7,0.55]
[1747762713424,4.02560283,2484.1,2484.0,0.7972]
[1747762713717,4.02560283,2484.1,2484.0,12.9915796]
[1747762713924,4.02560283,2484.1,2484.0,31.5685776]
[1747762714086,4.02560283,2484.1,2484.0,35.0763596]
[1747762714284,4.02560283,2484.1,2484.0,35.45848218]
[1747762714718,4.02560283,2484.1,2484.0,31.95070018]
[1747762714881,4.01824404,2484.1,2484.0,35.45848218]
[1747762715081,4.02559368,2484.2,2484.1,8.8199]
[1747762715287,4.02497425,2484.5,2484.3,0.8199]
[1747762715482,4.02497425,2484.5,2484.4,25.38]
[1747762715716,4.02497425,2484.5,2484.4,46.383]
[1747762716018,4.02497425,2484.5,2484.4,38.383]
[1747762716228,4.02497425,2484.5,2484.4,17.38]
[1747762716525,4.02497425,2484.5,2484.4,38.383]
[1747762716723,4.02497425,2484.5,2484.4,29.331]
[1747762718285,4.02497425,2484.5,2484.4,41.9589]
[1747762721931,4.01821485,2484.5,2484.4,41.9589]
[1747762722591,4.02479101,2484.7,2484.4,50.815476]
[1747762722797,4.02473772,2484.7,2484.5,0.8248]
[1747762723108,4.02473772,2484.7,2484.6,3.90236288]
[1747762723906,4.02473772,2484.7,2484.6,24.90136288]
[1747762724527,4.02473772,2484.7,2484.6,3.90236288]
[1747762724733,4.02473772,2484.7,2484.4,25.38]
[1747762724734,4.02495471,2484.5,2484.4,17.38]
[1747762724920,4.02495471,2484.5,2484.4,38.378]
[1747762727841,4.02495471,2484.5,2484.4,38.367]
[1747762728401,4.02495471,2484.5,2484.4,17.38]
[1747762728600,4.02495471,2484.5,2484.4,41.51334584]
[1747762729010,4.01998848,2484.5,2484.4,41.51334584]
[1747762729408,4.01998848,2484.5,2484.4,51.53094584]
[1747762730640,4.01998848,2484.5,2484.4,49.51334584]
[1747762731533,4.01998848,2484.5,2484.4,49.51234584]
[1747762731733,4.01998848,2484.5,2484.4,40.46334584]
[1747762731913,4.01998848,2484.5,2484.4,49.51234584]
[1747762733237,4.01998848,2484.5,2484.4,58.36892184]
[1747762733542,4.01998848,2484.5,2484.4,49.51234584]
[1747762735535,4.02488709,2484.6,2484.5,8.0]
[1747762735853,4.02488709,2484.6,2484.5,11.90236288]
[1747762736032,4.01919038,2484.6,2484.5,11.90236288]
[1747762736744,4.01919038,2484.6,2484.5,20.95136288]
[1747762737434,4.01919038,2484.6,2484.5,11.90236288]
[1747762737636,4.01919038,2484.6,2484.5,32.88736288]
[1747762738024,4.01919038,2484.6,2484.5,33.26917152]
[1747762739461,4.01919038,2484.6,2484.5,42.67574752]
[1747762739657,4.01919038,2484.6,2484.5,41.08277352]
[1747762739961,4.02437806,2484.9,2484.8,1.3548]
[1747762741007,4.02437806,2484.9,2484.8,21.36680864]
[1747762741159,4.02437806,2484.9,2484.8,12.31780864]
[1747762741354,4.02437806,2484.9,2484.8,21.36680864]
[1747762742388,4.02437806,2484.9,2484.8,20.985]
[1747762743076,4.01934979,2484.9,2484.8,20.985]
[1747762743261,4.01934979,2484.9,2484.8,23.16239]
[1747762743660,4.01934979,2484.9,2484.8,31.71239]
[1747762743864,4.02422187,2485.0,2484.9,8.0]
[1747762744741,4.02430681,2484.9,2484.8,2.72739]
[1747762744946,4.02430681,2484.9,2484.8,21.534]
[1747762745148,4.02430681,2484.9,2484.8,21.91645346]
[1747762747559,4.02430681,2484.9,2484.8,0.38245346]
[1747762747705,4.02430681,2484.9,2484.8,12.31745346]
[1747762747911,4.02430681,2484.9,2484.8,21.36545346]
[1747762748847,4.02422187,2485.0,2484.4,26.1907]
[1747762748848,4.02495471,2484.5,2484.4,26.1907]
[1747762749137,4.02495471,2484.5,2484.4,59.53476877]
[1747762749341,4.02486547,2484.6,2484.5,8.0]
[1747762749944,4.02486547,2484.6,2484.5,28.982]
[1747762750633,4.02467987,2484.7,2484.5,29.36441921]
[1747762750832,4.02479272,2484.6,2484.5,29.36441921]
[1747762751126,4.02479272,2484.6,2484.5,33.26678209]
[1747762751440,4.02479272,2484.6,2484.5,12.28478209]
[1747762751739,4.02479272,2484.6,2484.5,33.26778209]
[1747762752841,4.02479272,2484.6,2484.5,42.12435809]
[1747762753153,4.02479272,2484.6,2484.5,41.73746209]
[1747762753510,4.02479272,2484.6,2484.5,33.26778209]
[1747762756453,4.02479272,2484.6,2484.5,29.36541921]
[1747762756951,4.02479272,2484.6,2484.5,0.38241921]
[1747762757152,4.02479272,2484.6,2484.5,21.36541921]
[1747762757362,4.02479272,2484.6,2484.5,20.983]
[1747762758365,4.02479272,2484.6,2484.5,21.806]
[1747762758576,4.02479272,2484.6,2484.5,3.90236288]
[1747762758742,4.02479272,2484.6,2484.5,20.97]
[1747762759224,4.02495471,2484.5,2484.4,25.38]
[1747762759424,4.02495471,2484.5,2484.4,46.35]
[1747762759632,4.02495471,2484.5,2484.4,25.38]
[1747762760067,4.02495471,2484.5,2484.4,38.35]
[1747762760433,4.01687068,2484.5,2484.4,38.35]
[1747762761420,4.01687068,2484.5,2484.4,29.302]
[1747762761825,4.77467068,2484.5,2484.4,17.38]
[1747762762055,4.77467068,2484.5,2484.4,29.302]
[1747762762654,4.77467068,2484.5,2484.4,17.38]
[1747762762840,7.18767068,2484.5,2484.4,11.922]
[1747762763421,4.77467068,2484.5,2484.4,11.922]
[1747762764126,4.76715979,2484.5,2484.4,11.922]
[1747762765535,4.00935979,2484.5,2484.4,11.922]
[1747762769180,4.02560283,2484.1,2484.0,8.8085]
[1747762769497,4.02560283,2484.1,2484.0,31.46235]
[1747762769684,4.02560283,2484.1,2484.0,22.41335]
[1747762769856,4.02560283,2484.1,2484.0,31.46235]
[1747762770458,4.02560283,2484.1,2484.0,10.87104749]
[1747762770659,4.02560283,2484.1,2484.0,31.84404749]
[1747762770985,4.02560283,2484.1,2484.0,10.87104749]
[1747762771192,4.01844217,2484.1,2484.0,31.84404749]
[1747762775575,4.01844217,2484.1,2484.0,31.03554749]
[1747762777965,4.01844217,2484.1,2484.0,12.30569749]
[1747762778165,4.01076818,2484.1,2484.0,21.35469749]
[1747762778783,4.01076818,2484.1,2484.0,11.924]
[1747762779004,4.01076818,2484.1,2484.0,20.974]
[1747762781306,3.81076818,2484.1,2484.0,20.974]
[1747762782283,3.81076818,2484.1,2484.0,23.0714]
[1747762782487,3.81076818,2484.1,2484.0,23.8846]
[1747762783590,3.81076818,2484.1,2484.0,24.26695114]
[1747762784438,4.02479272,2484.6,2484.0,32.26695114]
[1747762784715,4.02527875,2484.3,2484.2,0.8132]
[1747762784884,4.02527875,2484.3,2484.2,12.09489511]
[1747762785088,4.02527875,2484.3,2484.2,21.88382225]
[1747762785317,4.02040057,2484.3,2484.2,13.02724625]
[1747762785824,4.02040057,2484.3,2484.2,21.88382225]
[1747762785987,4.02040057,2484.3,2484.2,13.02724625]
[1747762786189,4.02040057,2484.3,2484.2,12.47724625]
[1747762786492,4.02040057,2484.3,2484.2,20.21334625]
[1747762786709,4.02040057,2484.3,2484.2,16.41334625]
[1747762787311,4.02040057,2484.3,2484.2,12.47724625]
[1747762787821,4.02040057,2484.3,2484.2,18.24634625]
[1747762787982,4.02040057,2484.3,2484.2,12.47724625]
[1747762788710,4.02040057,2484.3,2484.2,21.14666125]
[1747762788912,4.02040057,2484.3,2484.2,20.13566125]
[1747762789417,4.02040057,2484.3,2484.2,18.33566125]
[1747762789589,4.02040057,2484.3,2484.2,39.14166125]
[1747762790302,4.02040057,2484.3,2484.2,33.43624625]
[1747762790499,4.02040057,2484.3,2484.2,8.38235114]
[1747762790713,4.02040057,2484.3,2484.2,29.34035114]
[1747762792395,4.01549638,2484.3,2484.2,29.34035114]
[1747762796364,4.01549638,2484.3,2484.2,21.34035114]
[1747762796857,4.01549638,2484.3,2484.2,12.29135114]
[1747762797056,4.01549638,2484.3,2484.2,21.34035114]
[1747762797430,4.01549638,2484.3,2484.2,0.38235114]
[1747762797763,4.82949638,2484.3,2484.2,12.29135114]
[1747762798168,4.82949638,2484.3,2484.2,11.909]
[1747762799328,4.82246881,2484.3,2484.2,11.909]
[1747762800378,4.02608905,2483.8,2483.7,17.373]
[1747762800671,8.99228243,2483.8,2483.4,0.47210319]
[1747762800834,4.79517539,2483.5,2483.4,11.909]
[1747762803260,4.02657539,2483.5,2483.4,11.909]
[1747762803577,4.02657539,2483.5,2483.4,13.0999]
[1747762803767,4.02644843,2483.6,2483.4,21.0999]
[1747762803965,0.7681,2484.3,2483.5,17.8301]
[1747762804161,4.02641327,2483.6,2483.5,17.8301]
[1747762804461,4.02641327,2483.6,2483.5,21.4731]
[1747762805374,4.02544078,2484.2,2483.6,0.55]
[1747762805550,4.0260404,2483.9,2483.8,0.55]
[1747762805751,4.0260404,2483.9,2483.8,37.84]
[1747762805953,4.0260404,2483.9,2483.8,25.379]
[1747762806280,4.01974831,2483.9,2483.8,48.96148]
[1747762807796,4.02579635,2484.0,2483.8,48.96148]
[1747762807797,4.02581345,2484.0,2483.9,8.0]
[1747762808762,4.02574752,2484.1,2484.0,0.7864]
[1747762808962,4.02574752,2484.1,2484.0,18.192976]
[1747762809644,4.02574752,2484.1,2484.0,9.71796251]
[1747762809844,4.02574752,2484.1,2484.0,13.62032539]
[1747762810988,4.02574752,2484.1,2484.0,22.47690139]
[1747762811342,4.02574752,2484.1,2484.0,21.37683539]
[1747762812182,4.02545893,2484.2,2484.0,21.37683539]
[1747762812400,4.02432936,2484.9,2484.1,0.55]
[1747762812686,4.02527875,2484.3,2484.2,0.56203254]
[1747762813389,4.01733558,2484.3,2484.2,0.56203254]
[1747762813778,4.02560283,2484.1,2484.0,5.07032539]
[1747762813983,4.02560283,2484.1,2484.0,24.86136288]
[1747762815097,4.02547695,2484.2,2484.0,24.86136288]
[1747762815383,4.02544078,2484.2,2484.1,14.274426]
[1747762815612,4.02509797,2484.5,2484.2,0.55]
[1747762815894,4.02494877,2484.6,2484.3,0.809]
[1747762816188,4.02457196,2484.8,2484.4,17.406576]
[1747762816392,4.02463074,2484.7,2484.6,8.0]
[1747762816554,4.0244511,2484.9,2484.8,0.8143]
[1747762816749,4.0244511,2484.9,2484.8,17.8643]
[1747762817055,4.02414486,2485.0,2484.8,17.8643]
[1747762817253,4.02333534,2485.5,2484.9,0.55]
[1747762817454,4.02398293,2485.1,2485.0,22.29943]
[1747762817754,4.02398293,2485.1,2485.0,30.79843]
[1747762818087,4.02398293,2485.1,2485.0,8.0]
[1747762818387,4.02398293,2485.1,2485.0,28.957]
[1747762818600,4.02463074,2484.7,2484.6,17.376]
[1747762818757,4.02463074,2484.7,2484.6,46.333]
[1747762818959,4.02463074,2484.7,2484.6,50.23536288]
[1747762819687,4.02463074,2484.7,2484.6,29.27836288]
[1747762819908,4.02463074,2484.7,2484.6,38.317]
[1747762820292,4.02035295,2484.7,2484.6,38.317]
[1747762820481,4.02035295,2484.7,2484.6,46.317]
[1747762820678,4.02381873,2485.3,2484.6,47.649]
[1747762820878,4.02446877,2484.8,2484.7,13.23436288]
[1747762821112,4.02446877,2484.8,2484.7,21.54093888]
[1747762821413,4.02446877,2484.8,2484.7,15.25246288]
[1747762821713,4.02446877,2484.8,2484.7,15.63348105]
[1747762822215,4.02285096,2485.8,2484.8,0.55]
[1747762822509,0.8528,2485.9,2485.1,0.8066]
[1747762822714,4.0237674,2485.3,2485.2,19.892]
[1747762822911,4.0237674,2485.3,2485.2,28.748576]
[1747762823214,4.0237674,2485.3,2485.2,19.892]
[1747762824614,4.0237674,2485.3,2485.2,8.0]
[1747762824810,4.0237674,2485.3,2485.2,28.939]
[1747762825316,4.0237674,2485.3,2485.2,29.79994341]
[1747762825499,4.0237674,2485.3,2485.2,38.65651941]
[1747762825707,4.0237674,2485.3,2485.2,32.18416241]
[1747762826285,4.02284978,2485.8,2485.3,0.55]
[1747762826519,4.02284978,2485.8,2485.4,1.3353]
[1747762826520,4.02333534,2485.5,2485.4,1.3353]
[1747762826690,4.02333534,2485.5,2485.4,21.07482434]
[1747762827422,4.01521906,2485.5,2485.4,21.07482434]
[1747762831482,4.12271782,2485.9,2485.4,21.07482434]
[1747762831483,0.1,2485.9,2485.4,21.07482434]
[1747762831725,4.02308367,2485.7,2485.4,21.07482434]
[1747762831926,4.02317573,2485.6,2485.4,21.07482434]
[1747762832301,4.02317573,2485.6,2485.5,2.10748243]
[1747762832820,4.02287299,2485.8,2485.5,2.10748243]
[1747762832821,4.02287071,2485.8,2485.6,0.55]
[1747762833009,0.1,2485.9,2485.8,0.8173]
[1747762833185,0.1,2485.9,2485.8,10.223876]
[1747762833824,0.1,2485.9,2485.8,12.23530089]
[1747762834025,0.1,2485.9,2485.8,13.2173297]
[1747762835429,0.1,2485.9,2485.8,4.3607537]
[1747762835725,0.1,2485.9,2485.8,13.2173297]
[1747762836308,0.1,2485.9,2485.8,23.22875459]
[1747762836997,0.1,2485.9,2485.8,21.2173297]
[1747762837324,0.1,2485.9,2485.8,18.9517887]
[1747762837820,4.12268796,2485.9,2485.8,16.2467537]
[1747762838039,4.12268796,2485.9,2485.8,26.02533544]
[1747762838602,0.1,2485.9,2485.8,25.645361]
[1747762840238,0.1,2485.9,2485.8,33.645361]
[1747762840904,0.1,2485.9,2485.8,34.02534181]
[1747762843725,4.12268796,2485.9,2485.8,34.02534181]
[1747762843887,4.12268796,2485.9,2485.8,20.81398081]
[1747762844228,4.12268796,2485.9,2485.8,29.85698081]
[1747762844617,4.12268796,2485.9,2485.8,32.92039889]
[1747762845187,0.1,2485.9,2485.8,41.77697489]
[1747762845623,4.12268796,2485.9,2485.8,41.77697489]
[1747762846032,4.12268796,2485.9,2485.8,32.73397489]
[1747762846326,0.1,2485.9,2485.8,41.77697489]
[1747762847019,0.1,2485.9,2485.8,21.63367489]
[1747762847330,4.12268796,2485.9,2485.8,12.77709889]
[1747762847530,4.12268796,2485.9,2485.8,30.63968081]
[1747762847732,0.1,2485.9,2485.8,39.49625681]
[1747762848650,0.1,2485.9,2485.8,30.45325681]
[1747762848830,4.12268796,2485.9,2485.8,39.49525681]
[1747762849332,0.1,2485.9,2485.8,38.75308381]
[1747762849519,0.1,2485.9,2485.8,42.65544669]
[1747762849694,0.1,2485.9,2485.8,44.66687158]
[1747762850543,0.1,2485.9,2485.8,36.55246858]
[1747762850850,4.02140637,2486.7,2486.4,9.3431]
[1747762851202,4.02140637,2486.7,2486.6,8.55]
[1747762851325,4.02140637,2486.7,2486.6,17.406576]
[1747762852213,4.02131203,2486.8,2486.6,17.406576]
[1747762852436,4.02131203,2486.8,2486.6,8.55]
[1747762852953,4.02131203,2486.8,2486.7,0.37998081]
[1747762853346,0.1,2486.9,2486.7,0.92998081]
[1747762853528,0.1,2486.9,2486.8,8.55]
[1747762853855,0.1,2486.9,2486.8,17.80593624]
[1747762854053,4.1210704,2486.9,2486.8,17.80593624]
[1747762854348,0.1,2486.9,2486.8,18.18591705]
[1747762854560,4.1210704,2486.9,2486.8,20.94650533]
[1747762854766,4.1210704,2486.9,2486.8,29.28798081]
[1747762856153,4.1210704,2486.9,2486.8,21.28698081]
[1747762857228,4.1210704,2486.9,2486.8,30.69355681]
[1747762857427,4.1210704,2486.9,2486.8,29.63159981]
[1747762857626,4.1210704,2486.9,2486.8,28.67004581]
[1747762857817,4.1210704,2486.9,2486.8,27.12879613]
[1747762858564,0.1,2486.9,2486.8,27.88089613]
[1747762859748,4.1210704,2486.9,2486.8,27.88089613]
[1747762859949,4.1210704,2486.9,2486.8,27.40401413]
[1747762860654,4.1210704,2486.9,2486.8,27.40201413]
[1747762860857,4.1210704,2486.9,2486.8,18.36201413]
[1747762861151,4.1210704,2486.9,2486.8,27.40201413]
[1747762861367,0.1,2486.9,2486.8,27.40201413]
[1747762861560,4.1210704,2486.9,2486.8,27.40201413]
[1747762862339,0.1,2486.9,2486.8,27.40201413]
[1747762862543,4.1210704,2486.9,2486.8,27.40201413]
[1747762864480,4.1210704,2486.9,2486.8,6.49701413]
[1747762864683,4.1210704,2486.9,2486.8,23.13217713]
[1747762865771,4.1210704,2486.9,2486.8,23.13117713]
[1747762865953,0.1,2486.9,2486.8,23.13117713]
[1747762866484,0.1,2486.9,2486.8,34.82916918]
[1747762866783,0.1,2486.9,2486.8,39.595172]
[1747762867088,0.1,2486.9,2486.8,47.595172]
[1747762868178,0.1,2486.9,2486.8,47.7486401]
[1747762869665,1.5284,2487.9,2487.2,0.55]
[1747762869878,4.01970637,2487.8,2487.4,1.3621]
[1747762870079,0.7667,2487.9,2487.6,0.55]
[1747762870288,4.78624497,2487.9,2487.8,0.55]
[1747762870488,0.7667,2487.9,2487.8,22.088476]
[1747762871610,0.7667,2487.9,2487.8,22.46845681]
[1747762871763,0.7667,2487.9,2487.8,25.39278188]
[1747762872573,4.78615415,2487.9,2487.8,25.39278188]
[1747762872895,4.78615415,2487.9,2487.8,27.40258974]
[1747762872896,0.7667,2487.9,2487.8,27.40258974]
[1747762873190,0.7667,2487.9,2487.8,27.8018586]
[1747762873581,0.7667,2487.9,2487.8,35.8018586]
[1747762873891,4.01872222,2488.4,2488.0,1.3114]
[1747762874056,4.01872222,2488.4,2488.0,1.51279551]
[1747762874393,4.01881825,2488.3,2488.0,1.51279551]
[1747762874554,4.01889371,2488.3,2488.1,8.856576]
[1747762874750,4.01889371,2488.3,2488.2,9.037]
[1747762874996,4.01889371,2488.3,2488.2,19.83421315]
[1747762875554,0.1,2488.9,2488.2,20.21419396]
[1747762875752,0.1,2488.9,2488.3,0.55]
[1747762875980,4.01843607,2488.6,2488.5,0.55]
[1747762876629,4.01843607,2488.6,2488.5,8.758888]
[1747762877003,4.01843607,2488.6,2488.5,2.671924]
[1747762877210,4.01843607,2488.6,2488.5,23.567924]
[1747762877406,4.01843607,2488.6,2488.5,2.121924]
[1747762877595,4.01848503,2488.5,2488.4,17.351]
[1747762878244,0.8901,2488.9,2488.5,0.55]
[1747762878406,4.01846809,2488.6,2488.5,0.55]
[1747762878734,4.01832355,2488.6,2488.5,4.579083]
[1747762879027,4.01822179,2488.7,2488.5,4.579083]
[1747762879199,4.01832355,2488.6,2488.5,0.55]
[1747762879527,4.01832355,2488.6,2488.5,9.406576]
[1747762880526,0.8901,2488.9,2488.5,9.406576]
[1747762880734,4.01832355,2488.6,2488.5,0.55]
[1747762880893,4.01832355,2488.6,2488.5,9.406576]
[1747762881540,4.01824312,2488.7,2488.5,13.30893888]
[1747762881750,0.1,2488.9,2488.5,13.30893888]
[1747762881751,4.11791142,2488.9,2488.7,0.55]
[1747762882028,4.11799593,2488.9,2488.8,9.406576]
[1747762882230,0.1,2488.9,2488.8,9.406576]
[1747762882540,0.1,2488.9,2488.8,10.202076]
[1747762882696,0.1,2488.9,2488.8,11.2222836]
[1747762883733,4.1178392,2488.9,2488.8,6.3066176]
[1747762884241,4.1178392,2488.9,2488.8,5.28641]
[1747762884608,4.1178392,2488.9,2488.8,13.28641]
[1747762884805,4.1178392,2488.9,2488.8,22.285106]
[1747762885010,4.1178392,2488.9,2488.8,23.319106]
[1747762885205,4.01832355,2488.6,2488.5,3.90236288]
[1747762885431,4.01832355,2488.6,2488.5,29.423]
[1747762885641,4.0182518,2488.7,2488.6,14.215457]
[1747762885916,4.0182518,2488.7,2488.6,35.088457]
[1747762887658,4.01808785,2488.8,2488.7,8.55]
[1747762887848,0.1,2488.9,2488.7,20.55435109]
[1747762888049,0.8185,2489.5,2489.0,8.55]
[1747762888233,4.01700639,2489.5,2489.2,0.55]
[1747762888560,4.01678104,2489.6,2489.4,0.55]
[1747762888764,4.01675723,2489.6,2489.5,9.583]
[1747762889262,4.01675723,2489.6,2489.5,17.583]
[1747762891323,4.01675723,2489.6,2489.5,17.97660027]
[1747762892672,3.27588879,2489.8,2489.6,8.55]
[1747762892965,3.27588879,2489.8,2489.6,0.55]
[1747762892966,4.01654817,2489.7,2489.6,0.55]
[1747762893129,4.01654817,2489.7,2489.6,38.273576]
[1747762894223,4.84674817,2489.7,2489.6,8.0]
[1747762894567,4.84674817,2489.7,2489.6,28.867]
[1747762894928,4.01654817,2489.7,2489.6,28.867]
[1747762898133,4.01654817,2489.7,2489.6,28.865]
[1747762899766,4.01703221,2489.4,2489.3,17.344]
[1747762899939,4.01703221,2489.4,2489.3,46.208]
[1747762900358,4.01703221,2489.4,2489.3,46.58619463]
[1747762900856,4.01703221,2489.4,2489.3,25.72219463]
[1747762901055,4.77490951,2489.6,2489.3,25.72219463]
[1747762901056,4.77497319,2489.6,2489.4,8.0]
[1747762901375,4.01687085,2489.5,2489.4,8.0]
[1747762901878,4.01687085,2489.5,2489.4,28.864]
[1747762902061,4.01687085,2489.5,2489.4,37.720576]
[1747762902385,4.01687085,2489.5,2489.4,32.08099463]
[1747762902598,4.01687085,2489.5,2489.4,31.55059463]
[1747762903585,4.01687085,2489.5,2489.4,29.24219463]
[1747762903953,4.01687085,2489.5,2489.4,32.08099463]
[1747762905287,4.01687085,2489.5,2489.4,35.98335751]
[1747762910614,4.01687085,2489.5,2489.4,35.44695751]
[1747762913280,0.8242,2489.8,2489.5,0.55]
[1747762913281,4.01646729,2489.8,2489.5,0.55]
[1747762913480,0.07497338,2489.9,2489.7,0.7859]
[1747762913684,0.07497338,2489.9,2489.8,9.406576]
[1747762915089,4.09119893,2489.9,2489.8,9.406576]
[1747762915432,4.09119893,2489.9,2489.8,9.78477063]
[1747762915738,4.09119893,2489.9,2489.8,3.66354063]
[1747762916026,4.09119893,2489.9,2489.8,26.17540136]
[1747762916392,4.09119893,2489.9,2489.8,22.88905536]
[1747762916591,4.09119893,2489.9,2489.8,30.07777063]
[1747762916790,4.09119893,2489.9,2489.8,38.07677063]
[1747762916991,4.09119893,2489.9,2489.8,29.22019463]
[1747762917261,4.09119893,2489.9,2489.8,34.70419463]
[1747762918336,4.09119893,2489.9,2489.8,31.99320963]
[1747762919295,4.09119893,2489.9,2489.8,32.6559846]
[1747762920907,0.07497338,2489.9,2489.8,33.2059846]
[1747762921429,0.07497338,2489.9,2489.8,33.67996332]
[1747762921640,4.0156461,2490.3,2489.9,0.55]
[1747762921806,4.01576689,2490.2,2490.0,8.0]
[1747762922132,4.01576689,2490.2,2490.1,17.711576]
[1747762922293,4.01576689,2490.2,2490.1,17.609259]
[1747762922496,4.01576689,2490.2,2490.1,17.98745363]
[1747762922693,4.01576689,2490.2,2490.1,17.62722363]
[1747762923134,4.335,2491.9,2490.2,10.55782217]
[1747762923135,4.01493556,2490.7,2490.2,10.55782217]
[1747762923333,4.0152179,2490.6,2490.4,8.55]
[1747762923533,4.0152179,2490.6,2490.5,26.434576]
[1747762923733,4.01482344,2490.8,2490.5,26.434576]
[1747762923734,4.01500089,2490.7,2490.5,26.434576]
[1747762923939,0.1,2490.9,2490.7,8.55]
[1747762924143,0.1,2490.9,2490.8,20.362]
[1747762924144,4.11469653,2490.9,2490.8,20.362]
[1747762924327,4.11469653,2490.9,2490.8,23.1982]
[1747762925152,4.11469653,2490.9,2490.8,23.57639463]
[1747762925645,0.1,2490.9,2490.8,32.43297063]
[1747762927336,0.1,2490.9,2490.8,33.19957063]
[1747762928060,4.01419808,2491.2,2490.8,33.19957063]
[1747762928218,4.01387555,2491.4,2491.1,0.55]
[1747762928419,4.01396861,2491.3,2491.2,26.91]
[1747762929065,4.01396861,2491.3,2491.2,38.169]
[1747762929358,4.01396861,2491.3,2491.2,17.333]
[1747762929562,4.01396861,2491.3,2491.2,38.169]
[1747762930157,4.80056861,2491.3,2491.2,38.169]
[1747762933458,4.01396861,2491.3,2491.2,38.169]
[1747762933859,4.01396861,2491.3,2491.2,38.719]
[1747762934073,4.01396861,2491.3,2491.2,17.333]
[1747762934385,4.78916861,2491.3,2491.2,17.333]
[1747762934583,4.78916861,2491.3,2491.2,38.167]
[1747762936197,4.78916861,2491.3,2491.2,17.333]
[1747762936403,4.78916861,2491.3,2491.2,38.166]
[1747762939829,0.7852,2491.6,2491.2,38.166]
[1747762940003,4.01380749,2491.4,2491.3,0.55]
[1747762940321,4.01378955,2491.5,2491.3,9.406576]
[1747762940529,4.01378955,2491.5,2491.4,8.856576]
[1747762940724,4.01378955,2491.5,2491.4,5.73991]
[1747762941531,4.01380749,2491.4,2491.3,0.55]
[1747762942023,4.01380749,2491.4,2491.3,9.406576]
[1747762942700,4.01380749,2491.4,2491.3,5.913643]
[1747762942902,4.01380749,2491.4,2491.3,0.55]
[1747762943097,4.01380749,2491.4,2491.3,21.363]
[1747762943499,4.01380749,2491.4,2491.3,30.219576]
[1747762944301,4.01380749,2491.4,2491.3,26.217015]
[1747762945027,4.01380749,2491.4,2491.3,21.73998295]
[1747762945206,4.01380749,2491.4,2491.3,30.59655895]
[1747762946623,4.01351818,2491.6,2491.3,30.59655895]
[1747762946624,4.01357189,2491.6,2491.4,0.8]
[1747762946796,4.01347647,2491.7,2491.5,11.99623189]
[1747762946995,0.1,2491.9,2491.5,3.13965589]
[1747762947344,4.01348531,2491.6,2491.5,3.68965589]
[1747762947500,4.01348531,2491.6,2491.5,11.94329089]
[1747762947904,4.01348531,2491.6,2491.5,10.08278789]